Cogmind - Beta 13 @@@ ROGUE MODE // 2024.07.06 @ 19:41:04 Player: sinsee Result: Destroyed by G-47 Trooper with Particle Gun Performance ------------- Evolutions (2) 1000 Regions Visited (6) 1200 Robots Destroyed (33) 165 Value Destroyed (1049) 1049 Prototype IDs (0) 0 Alien Tech Used (0) 0 Bonus (0) 0 TOTAL SCORE: 3414 Bonus ------- None Cogmind --------- Core Integrity 0/550 Matter 114/300 Energy 100/100 System Corruption 0% Temperature Cool (9) Movement Walking (400) Ox4 Location -8/Materials Parts ------- > --- POWER (1) -------- (None) > --- PROPULSION (4) --- Aluminum Leg > --- UTILITY (4) ------ Improved Heat Sink Improved Heat Sink High-capacity Storage Unit Signal Interpreter > --- WEAPON (2) ------- (None) > --- INVENTORY (20) --- Ion Engine Ion Engine Heat Sink Particle Cannon Particle Cannon Peak State ------------ > --- POWER ------------ Improved Ion Engine > --- PROPULSION ------- Improved Aluminum Leg Improved Aluminum Leg Improved Aluminum Leg Improved Aluminum Leg > --- UTILITY ---------- Small Storage Unit Sensor Array > --- WEAPON ----------- Particle Cannon Particle Cannon > --- INVENTORY -------- Ion Engine Ion Engine Ion Engine Aluminum Leg Heat Sink Particle Cannon Particle Cannon Mining Laser [Rating: 17] Favorites ----------- Power Ion Engine Engine Ion Engine Propulsion Improved Treads Treads Improved Treads Leg Improved Aluminum Leg Utility Sensor Array Device Sensor Array Storage Small Storage Unit Processor Signal Interpreter Weapon Particle Cannon Energy Gun EM Pulse Gun Energy Cannon Particle Cannon Launcher Rocket Launcher Special Weapon Mining Laser Build | -11 -10 -9 -9 -9 -8 -8 ------- Run | Yrd Mat Mat Min Exi Min Mat Slots Evolved 4 | . . 2 . . . 2 Power . | . . . . . . . Propulsion 2 | . . 2 . . . . Utility 2 | . . . . . . 2 Weapon . | . . . . . . . Parts Attached 38 | 6 9 10 . 1 . 12 Power 3 | 1 . 2 . . . . Engine 3 | 1 . 2 . . . . Core . | . . . . . . . Reactor . | . . . . . . . Propulsion 14 | 2 4 6 . . . 2 Treads 6 | 2 . 4 . . . . Leg 8 | . 4 2 . . . 2 Wheel . | . . . . . . . Hover . | . . . . . . . Flight . | . . . . . . . Utility 7 | 1 1 . . 1 . 4 Device 4 | . 1 . . . . 3 Storage 2 | 1 . . . 1 . . Processor 1 | . . . . . . 1 Hackware . | . . . . . . . Protection . | . . . . . . . Artifact . | . . . . . . . Weapon 14 | 2 4 2 . . . 6 Energy Gun 5 | 2 1 . . . . 2 Energy Cannon 6 | . 2 2 . . . 2 Ballistic Gun . | . . . . . . . Ballistic Cannon . | . . . . . . . Launcher 2 | . . . . . . 2 Special Weapon 1 | . 1 . . . . . Impact Weapon . | . . . . . . . Slashing Weapon . | . . . . . . . Piercing Weapon . | . . . . . . . Special Melee Weapon . | . . . . . . . Unidentified Prototypes . | . . . . . . . Parts Lost 12 | . . . . . . 12 Power 1 | . . . . . . 1 Propulsion 5 | . . . . . . 5 Utility 2 | . . . . . . 2 Weapon 4 | . . . . . . 4 Highest Loss Streak 8 | . . . . . . 8 To Critical Strikes . | . . . . . . . Average Slot Usage (%) 94 | . 97 99 100 100 100 68 Engine 10 | . 14 11 11 11 11 1 Treads 21 | . 5 14 44 44 44 15 Leg 15 | . 22 28 . . . 5 Device 11 | . 11 11 11 11 11 13 Storage 11 | . 14 11 11 11 11 9 Processor 1 | . . . . . . 9 Energy Gun 3 | . 18 . . . . 1 Energy Cannon 17 | . 9 22 22 22 22 6 Naked Turns . | . . . . . . . Heaviest Build 55 | 14 19 21 19 54 54 55 Greatest Support 92 | 40 40 92 92 92 92 92 Greatest Overweight (x) 15 | 2 . . . . . 15 Average Overweight (x) . | . . . . . . 1 Largest Inventory Capacity 20 | 8 8 8 8 20 20 20 Average Capacity 10 | 6 8 8 8 9 20 20 Most Carried 8 | 4 8 8 8 8 8 7 Average Carried 6 | 2 6 7 8 7 8 5 Final Capacity 20 | 8 8 8 8 20 20 20 Final Carried 8 | 4 8 8 8 8 8 5 Class Distribution -------------------- 98% | Mutant Dominant Class ---------------- Mutant | -10/Materials Mutant | -9/Materials Mutant | -9/Mines Mutant | -9/Exiles Mutant | -8/Mines Mutant | -8/Materials Resources | -11 -10 -9 -9 -9 -8 -8 ----------- Run | Yrd Mat Mat Min Exi Min Mat Matter Collected 605 | 231 118 116 . . . 140 Remotely . | . . . . . . . Salvage Created 1068 | . 252 463 . . . 353 Parts 61 | . 8 33 . . . 20 Haulers Intercepted . | . . . . . . . Recyclers Shooed . | . . . . . . . Parts Field Recycled . | . . . . . . . Retrieved Matter . | . . . . . . . Parts Self-Destructed . | . . . . . . . Prevented . | . . . . . . . Kills | -11 -10 -9 -9 -9 -8 -8 ------- Run | Yrd Mat Mat Min Exi Min Mat Combat Hostiles Destroyed 30 | . 5 14 . . . 11 Guns 5 | . 4 . . . . 1 Cannons 18 | . 1 14 . . . 3 AOE 7 | . . . . . . 7 Classes Destroyed 7 | . 1 3 . . . 3 Worker 1 | . . 1 . . . . Recycler 1 | . . . . . . 1 Watcher 1 | . . . . . . 1 Swarmer 9 | . . 7 . . . 2 Grunt 15 | . 5 3 . . . 7 Sentry 5 | . . 4 . . . 1 Hunter 1 | . . . . . . 1 Best Kill Streak 8 | . 2 3 . . . 8 Combat Bots Only 7 | . 2 3 . . . 7 Max Kills in Single Turn 2 | . 1 1 . . . 2 Gunslinging . | . . . . . . . Exploded 2 | . . . . . . 2 Melee . | . . . . . . . Uniques/NPCs Destroyed . | . . . . . . . Combat | -11 -10 -9 -9 -9 -8 -8 -------- Run | Yrd Mat Mat Min Exi Min Mat Hostile Shots Fired 261 | . 16 79 . . . 166 Missed 76 | . 4 22 . . . 50 Damage Taken 2745 | . 178 678 . . . 1889 Core 723 | . 12 161 . . . 550 Absorbed by Shields . | . . . . . . . Core Remaining (%) 84 | 100 95 . . . 59 . Volleys Fired 75 | . 13 40 . . . 22 Largest 2 | . 2 2 . . . 2 Hottest 136 | . 136 136 . . . 136 Shots Fired 149 | . 24 81 . . . 44 Gun 28 | . 18 . . . . 10 Cannon 97 | . 4 81 . . . 12 Launcher 22 | . . . . . . 22 Special 2 | . 2 . . . . . Kinetic . | . . . . . . . Thermal 118 | . 15 81 . . . 22 Explosive 22 | . . . . . . 22 Electromagnetic 9 | . 9 . . . . . Robot Hit Streak 6 | . 6 6 . . . 6 Robot Miss Streak 10 | . 2 10 . . . 4 Penetration Max . | . . . . . . . Secondary Targets 1 | . 1 . . . . . Max Gunslinging Chain 1 | . 1 . . . . . Shots Hit Robots 74 | . 13 35 . . . 26 Core Hits 57 | . 10 15 . . . 32 Critical Kills . | . . . . . . . Critical Parts Destroyed . | . . . . . . . Critical Strikes 1 | . 1 . . . . . Burn 1 | . 1 . . . . . Melee Attacks . | . . . . . . . Impact . | . . . . . . . Slashing . | . . . . . . . Piercing . | . . . . . . . Sneak Attacks . | . . . . . . . Combat Hostiles . | . . . . . . . Follow-up Attacks . | . . . . . . . Damage Inflicted 2163 | . 177 737 . . . 1249 Guns 247 | . 156 . . . . 91 Cannons 901 | . 21 737 . . . 143 Explosions 1015 | . . . . . . 1015 Melee . | . . . . . . . Ramming . | . . . . . . . Kinetic . | . . . . . . . Thermal 1055 | . 84 737 . . . 234 Explosive 1015 | . . . . . . 1015 Electromagnetic 93 | . 93 . . . . . Impact . | . . . . . . . Slashing . | . . . . . . . Piercing . | . . . . . . . Highest Corruption 3 | . . 3 3 3 3 . Average Corruption 2 | . . 2 3 3 3 . Corruption Purged . | . . . . . . . Corruption Blocked . | . . . . . . . Effects 20 | . . 9 . 9 2 . Message Errors 2 | . . . . 2 . . Matter Fused 4 | . . 2 . 1 1 . Heat Flow Errors 5 | . . 3 . 2 . . Energy Discharges 3 | . . . . 3 . . Data Loss (minor) 4 | . . 3 . 1 . . Data Loss (major) 1 | . . . . . 1 . Misfires 1 | . . 1 . . . . Overload Shots . | . . . . . . . Overflow Damage 42 | . . 1 . . . 41 Projectiles 1 | . . 1 . . . . Explosions 41 | . . . . . . 41 Melee . | . . . . . . . Knockbacks . | . . . . . . . Impact . | . . . . . . . Kinetic . | . . . . . . . Secondary . | . . . . . . . Self-Inflicted Damage 116 | . . . . . . 116 Shots 5 | . . . . . . 5 Rammed . | . . . . . . . Targets Rammed . | . . . . . . . Kicked . | . . . . . . . Crushed . | . . . . . . . Highest Temperature 588 | . 177 588 . 196 . 171 Average Temperature 166 | . 76 203 . 93 . 64 Received Heat Transfer 1227 | . 87 132 . . . 1008 Effects 14 | . . 14 . . . . Shutdowns 3 | . . 3 . . . . Energy Bleed 1 | . . 1 . . . . Interference 4 | . . 4 . . . . Damage (minor) 2 | . . 2 . . . . Damage (major) 3 | . . 3 . . . . Damage (core) 1 | . . 1 . . . . Siege Activations . | . . . . . . . Robots Corrupted . | . . . . . . . Combat Hostiles . | . . . . . . . Parts Fried . | . . . . . . . Impact Corruptions . | . . . . . . . Robots Melted . | . . . . . . . Combat Hostiles . | . . . . . . . Parts Melted 5 | . 2 2 . . . 1 Heat Transferred 2109 | . 296 1332 . . . 481 Parts Sabotaged . | . . . . . . . Parts Stolen . | . . . . . . . Parts Stripped . | . . . . . . . Power Chain Reactions . | . . . . . . . Alert | -11 -10 -9 -9 -9 -8 -8 ------- Run | Yrd Mat Mat Min Exi Min Mat Peak Influence 317 | . 148 262 43 . . 317 Initial 43 | . . . 43 . . . Average 125 | . 66 147 43 . . 206 Maximum Alert Level 1 | . . 1 . . . 1 Low Security (%) 66 | 100 100 59 100 . 100 29 Level 1 33 | . . 40 . . . 70 Level 2 . | . . . . . . . Level 3 . | . . . . . . . Level 4 . | . . . . . . . Level 5 . | . . . . . . . High Security . | . . . . . . . Max Security . | . . . . . . . Squads Dispatched 7 | . 1 2 . . . 4 Investigation 2 | . 1 1 . . . . Extermination . | . . . . . . . Reinforcement 2 | . . 1 . . . 1 Assault . | . . . . . . . Garrison 3 | . . . . . . 3 Intercept . | . . . . . . . Searches Triggered . | . . . . . . . Construction Impeded 1 | . . . . . . 1 Haulers Reinforced . | . . . . . . . Active Scanning Responses . | . . . . . . . Cargo Convoy Interrupts . | . . . . . . . Stealth | -11 -10 -9 -9 -9 -8 -8 --------- Run | Yrd Mat Mat Min Exi Min Mat Distress Signals 6 | . . 3 . . . 3 Communications Jammed . | . . . . . . . Distress Signals . | . . . . . . . Times Spotted 43 | . 5 18 . . . 20 Peak Tracking Total 8 | . 2 5 . . . 8 Tactical Retreats 2 | . . 2 . . . . Traps | -11 -10 -9 -9 -9 -8 -8 ------- Run | Yrd Mat Mat Min Exi Min Mat Traps Triggered 3 | . 1 2 . . . . Indirectly . | . . . . . . . Trap Hack Attempts . | . . . . . . . Triggered . | . . . . . . . Disarmed . | . . . . . . . Reprogrammed . | . . . . . . . Reused . | . . . . . . . Traps Extracted . | . . . . . . . Installed . | . . . . . . . Triggered . | . . . . . . . Machines | -11 -10 -9 -9 -9 -8 -8 ---------- Run | Yrd Mat Mat Min Exi Min Mat Machines Disabled 2 | . . 1 . . . 1 Max in Single Turn 1 | . . 1 . . . 1 Machines Repaired . | . . . . . . . Machines Dismantled . | . . . . . . . Machines Sabotaged . | . . . . . . . Overloaded Fab Kills . | . . . . . . . Hacking | -11 -10 -9 -9 -9 -8 -8 --------- Run | Yrd Mat Mat Min Exi Min Mat Machines Accessed 5 | . 2 2 . 1 . . Terminals 3 | . 2 1 . . . . Fabricators . | . . . . . . . Repair Stations . | . . . . . . . Recycling Units 1 | . . 1 . . . . Scanalyzers . | . . . . . . . Garrison Access . | . . . . . . . Total Hacks 33 | . 4 6 . 23 . . Successful 30 | . 3 4 . 23 . . Failed 3 | . 1 2 . . . . Catastrophic 2 | . 1 1 . . . . Database Lockouts . | . . . . . . . Manual . | . . . . . . . Terminals 9 | . 4 5 . . . . Fabricators . | . . . . . . . Repair Stations . | . . . . . . . Recycling Units 1 | . . 1 . . . . Scanalyzers . | . . . . . . . Garrison Access . | . . . . . . . Terminal Hacks 29 | . 3 3 . 23 . . Record 29 | . 3 3 . 23 . . Fabricator Hacks . | . . . . . . . Repair Station Hacks . | . . . . . . . Recycling Unit Hacks 1 | . . 1 . . . . Report Inventory 1 | . . 1 . . . . Scanalyzer . | . . . . . . . Garrison Access Hacks . | . . . . . . . Unauthorized Hacks . | . . . . . . . Terminals . | . . . . . . . Fabricators . | . . . . . . . Repair Stations . | . . . . . . . Recycling Units . | . . . . . . . Scanalyzers . | . . . . . . . Garrison Access . | . . . . . . . Data Cores Recovered . | . . . . . . . Used . | . . . . . . . Hacking Detections 2 | . 1 1 . . . . Full Trace Events 2 | . 1 1 . . . . Feedback Events 1 | . . 1 . . . . Corruption 1 | . . 1 . . . . Feedback Blocked . | . . . . . . . Robot Schematics Acquired . | . . . . . . . Robots Built . | . . . . . . . Authchips . | . . . . . . . Time . | . . . . . . . Total Robot Build Rating . | . . . . . . . Part Schematics Acquired . | . . . . . . . Parts Built . | . . . . . . . Authchips . | . . . . . . . Time . | . . . . . . . Total Part Build Rating . | . . . . . . . Parts Repaired . | . . . . . . . Time . | . . . . . . . Parts Recycled . | . . . . . . . Recycled Matter . | . . . . . . . Retrieved Matter . | . . . . . . . Retrieved Components . | . . . . . . . Parts Scanalyzed . | . . . . . . . Part Schematics Acquired . | . . . . . . . Parts Damaged . | . . . . . . . Bothacking | -11 -10 -9 -9 -9 -8 -8 ------------ Run | Yrd Mat Mat Min Exi Min Mat Used RIF Installer . | . . . . . . . Robots Hacked . | . . . . . . . Non-combat . | . . . . . . . Combat . | . . . . . . . Robot Hacks Applied . | . . . . . . . Relay Couplers Released . | . . . . . . . Fabnet Peak Effective % . | . . . . . . . Robots Rewired . | . . . . . . . Allies Hacked . | . . . . . . . Hacks Repelled . | . . . . . . . Allies | -11 -10 -9 -9 -9 -8 -8 -------- Run | Yrd Mat Mat Min Exi Min Mat Total Allies . | . . . . . . . Largest Group . | . . . . . . . Highest-Rated Group . | . . . . . . . Highest-Rated Ally . | . . . . . . . Total Orders . | . . . . . . . Ally Attacks . | . . . . . . . Total Damage . | . . . . . . . Kills . | . . . . . . . Allies Corrupted . | . . . . . . . Allies Melted . | . . . . . . . Intel | -11 -10 -9 -9 -9 -8 -8 ------- Run | Yrd Mat Mat Min Exi Min Mat Robot Analysis Total . | . . . . . . . Derelict Logs Recovered . | . . . . . . . Drone Launches . | . . . . . . . Drone Recoveries . | . . . . . . . Exploration | -11 -10 -9 -9 -9 -8 -8 ------------- Run | Yrd Mat Mat Min Exi Min Mat Turns Passed 2588 | 119 468 868 16 637 61 419 Spaces Moved 1430 | 77 304 469 11 393 39 137 Core 26 | 21 . . . . . 5 Treads 776 | 56 46 146 11 393 39 85 Legs 628 | . 258 323 . . . 47 Wheels . | . . . . . . . Hover . | . . . . . . . Flight . | . . . . . . . Fastest Speed 50 | 50 120 120 160 160 160 160 Average Speed 149 | 139 126 132 160 160 160 234 Slowest Speed 800 | 160 160 160 160 160 160 800 Overloaded Moves . | . . . . . . . Propulsion Burnouts . | . . . . . . . Robots Hopped . | . . . . . . . Cave-ins Triggered . | . . . . . . . Exploration Rate (%) 21 | 5 33 33 3 58 8 10 Regions Visited 6 Branch Regions 3 Pre-discovered Areas 1 | . . . . 1 . . Known Exits Taken . | . . . . . . . Unknown Exits Taken 6 | 1 1 1 1 1 1 . Scrap Searched . | . . . . . . . Spaces Dug 2 | . 2 . . . . . Terrain Destroyed 88 | . 2 . . . . 86 Melee . | . . . . . . . Projectile 2 | . 2 . . . . . AOE 86 | . . . . . . 86 Terrain Rammed . | . . . . . . . Walls Destroyed . | . . . . . . . Machines Disabled . | . . . . . . . Actions | -11 -10 -9 -9 -9 -8 -8 --------- Run | Yrd Mat Mat Min Exi Min Mat Total 1724 | 86 363 636 10 402 38 189 Wait 141 | . 20 105 . . . 16 Move 1424 | 76 303 468 10 392 38 137 Hop . | . . . . . . . Pick Up 25 | 4 9 5 . 5 . 2 Fast Attach 17 | 6 3 4 . 1 . 3 Attach 10 | . 2 3 . . . 5 Detach . | . . . . . . . Swap 11 | . 4 3 . . . 4 Drop 20 | . 9 8 . 3 . . Fire 75 | . 13 40 . . . 22 Melee . | . . . . . . . Ram . | . . . . . . . Kick . | . . . . . . . Crush . | . . . . . . . Escape Stasis . | . . . . . . . Rewire 1 | . . . . 1 . . Trap . | . . . . . . . Miscellaneous . | . . . . . . . Route ------- -11/Scrapyard -10/Materials -9/Materials -9/Mines -9/Exiles (discovered 2 exits: [*Min x2]) -8/Mines -8/Materials History --------- Turn | Location | Event 5 | -11/Scrapyard | Discovered new exit (range 16) 120 | -11/Scrapyard | Entered Materials 317 | -10/Materials | Build established: Mutant 559 | -10/Materials | Discovered new exit (range 16) 588 | -10/Materials | Entered another Materials area 588 | -9/Materials | Evolved 2 slots: Propulsion x2 1358 | -9/Materials | Discovered new exit (range 6) 1456 | -9/Materials | Entered Mines 1461 | -9/Mines | Deemed a non-threat by the Exiles lab entrance 1463 | -9/Mines | Discovered new exit (range 5) 1472 | -9/Mines | Entered Exiles 1511 | -9/Exiles | Discovered new exit (range 15) 1620 | -9/Exiles | Met 8R-AWN 1655 | -9/Exiles | Met EX-HEX 1798 | -9/Exiles | Met EX-DEC 1838 | -9/Exiles | Learned location of Zion (-7) 2083 | -9/Exiles | Discovered new exit (range 12) 2109 | -9/Exiles | Entered Mines 2153 | -8/Mines | Discovered new exit (range 7) 2170 | -8/Mines | Entered Materials 2170 | -8/Materials | Evolved 2 slots: Utility x2 2238 | -8/Materials | Garrison activated, responded to threat 2299 | -8/Materials | Destroyed 7 combat bots 2421 | -8/Materials | Lost 8 parts (4n2u2w) 2504 | -8/Materials | Core integrity fell below 50% 2536 | -8/Materials | Core integrity fell below 20% 2560 | -8/Materials | Lost 3 parts (1n2w) 2589 | -8/Materials | Destroyed by G-47 Trooper with Particle Gun Last Messages --------------- 02446_ Acquired 56 matter. 02447_ K-01 Serf collects debris. 02454_ Acquired Imp. Heat Sink. 02465_ Acquired Particle Gun. 02472_ K-01 Serf collects debris. 02476_ K-01 Serf cleans the Purification Channel. 02476_ Acquired Particle Gun. 02500_ Particle Gun melted. 02500_ G-47 Trooper destroyed. 02500_ U-05 Engineer builds a Door. 02506_ K-01 Serf collects debris. 02511_ Critical hit (Burn: +37). 02513_ K-01 Serf collects debris. 02520_ Critical hit (Burn: +37). 02523_ Particle Gun destroyed. 02529_ Aluminum Leg destroyed. 02536_ Acquired 49 matter. 02537_ Y-45 Defender destroyed. 02539_ Critical hit (Burn: +37). 02559_ R-06 Scavenger collects Aluminum Leg. Map ----- +----------------------------------------------------+ | ?????????????????????????????????????????????? | | ?????????????????????????????????????????????? | | ????????????????#######??????????????????????? | | ??????????????? #??????????????????????? | | ?????????????# """ #??????????????????????? | | ?????????????# """ #??????????????????????? | | ?????????????# """ #??????????????????????? | | ?????????????# #??????????????????????? | | ?????????????# """ #??????????????????????? | | ?????????????# """ #??????????????????????? | | ?????????????# """ #??????????????????????? | | ?????????????# !#??????????????????????? | | ?????????????#####+####??????????????????????? | | ??????????????# #??????????????????????? | | ??????????????# ##?????????????????????? | | ??????????????# ##????????????????????? | | ??????????????## # # #????###?????????????? | | ??????????????# # #?? ???????????? | | ????????????####### # ### ??????????? | | ????????????# [[ ## # "" ?????????? | | ????????????# [[ ## # "G ?????????? | | ????????????# [ ## # "" ????????? | | ????????????# ## ### !!! ????????? | | ?????????# + [ # #### !! ????????? | | ?????????# #""% # !! ????????? | | ?????????# #"Y[ # @ % ????????? | | ?????????+ ?#"" # k % ????????? | | ????????????# # ##### ###?????????? | | ????????????## ### # # ###??????????? | | ?????????????#### # # # # ##????????????? | | ????????????????### ###### #?????????????? | | ??????????????????# ####### #?????????????? | | ??????????????????# # #? #?????????????? | | ??????????????????#ga# # #?????????????? | | ??????????????????# u# # #?????????????? | | ????????????#"????# #% /% #?????????????? | | ????????????# # #*! # #?????????????? | | ????????????# ; "= #? #?????????????? | | ????????????# # #! #?? #?????????????? | | ????????????####### #######?????????????????? | | ????????????????? ???????????????????????? | | ???????????????? ???????????????????????? | | ?????????????? ??????????????????????? | | ?????????????# ??????????????????????? | | ?????????????# " ?????????????????????? | | ?????????????# """ "?????????????????????? | | ?????????????# "" ""????????????????????? | | ?????????????# """ ""????????????????????? | | ?????????????# ?"" ?????????????????????? | | ?????????????# ??? "?????????????????????? | +----------------------------------------------------+ Best States ------------- Heat Dissipation 59 Energy Generation 12 Energy Capacity 265 Matter Stores 300 Matter Capacity 300 Sight Range 16 Robot Scan Range 14 Terrain Scan Density 10 Evasion (%) 55 Recoil Reduction 4 Item Schematics ----------------- None Robot Schematics ------------------ None Fabricated ------------ Nothing Alien Tech Used ----------------- None Achievements -------------- Troublemaker Challenges ------------ None Game ------ Seed ReinforcedChargeEdition Manual? 0 Play Time 00:32:48 Cumulative 7.1 hours Start 2024.07.06 @ 19:10:01 End 2024.07.06 @ 19:41:04 Sessions 1 Manual Loads 0 Difficulty Rogue Special Mode None Game No. 11 Rogue 8 Adventurer 3 Explorer 0 Win Type - Total 0 Types 0/0/0/0/0/0/0/0/0 Lore% 9 Gallery% 10 Achievement% 8 Wizard Run 0 Options --------- Layout 0 ASCII 0 Keyboard 0 Movement Arrows Keybinds 0 Fullscreen 1 Font 18/SmallcapsGlow Map View 38x25 Zoom Use 100% Tactical HUD 1 Map Filters NONE Filters NONE Steam 1 RUN: 5478adee-0c6e-48a0-9505-58ed85b64f91